bitfinex-derivatives/quotes_SOLF0:USTF0_20250227
["timestamp","ask_amount","ask_price","bid_price","bid_amount"]
[1740623580884,3.8538,137.69,137.57,0.05454691]
[1740623581084,3.8538,137.69,137.53,15.41527972]
[1740623581085,3.8538,137.69,137.58,3.39764797]
[1740623581383,3.8538,137.69,137.59,5.40894797]
[1740623581588,3.8538,137.69,137.59,2.0113]
[1740623581890,3.8538,137.69,137.55,3.39764797]
[1740623582189,3.8538,137.69,137.63,0.04651137]
[1740623582190,0.04701504,137.65,137.63,0.04651137]
[1740623582584,7.2753,137.64,137.63,0.04651137]
[1740623582784,0.04701504,137.65,137.63,0.04651137]
[1740623583188,7.2753,137.64,137.63,0.04651137]
[1740623583489,0.04701504,137.65,137.49,75.46695323]
[1740623583688,1.28318357,137.66,137.53,3.39234464]
[1740623583881,33.91,137.67,137.5,5.36674464]
[1740623584087,1.28342233,137.66,137.5,3.39234464]
[1740623584281,7.2795,137.56,137.49,7.2831]
[1740623584592,12.04,137.6,137.51,0.04920443]
[1740623584790,0.0529487,137.54,137.48,3.39234464]
[1740623584991,15.9805,137.59,137.54,0.0478262]
[1740623585188,15.9805,137.59,137.47,5.28534464]
[1740623585488,7.2805,137.55,137.48,7.2837]
[1740623585692,0.04622284,137.54,137.52,0.05406848]
[1740623585989,7.2796,137.56,137.52,0.05406848]
[1740623586188,0.04666615,137.54,137.52,0.05406848]
[1740623587488,197.86,137.63,137.52,0.05406848]
[1740623587694,3.18910056,137.62,137.52,7.2814]
[1740623587993,1.9054,137.62,137.52,7.2814]
[1740623588490,3.17112813,137.61,137.52,7.2814]
[1740623588692,14.0057,137.64,137.56,0.05511953]
[1740623588693,0.05499474,137.58,137.56,0.05511953]
[1740623588887,7.2762,137.63,137.48,12.02]
[1740623589085,14.0057,137.64,137.49,3.39089158]
[1740623589286,14.0057,137.64,137.5,3.39089158]
[1740623589486,7.2765,137.62,137.51,3.39089158]
[1740623589690,14.0057,137.64,137.52,4.00969158]
[1740623589887,14.0057,137.64,137.53,3.39089158]
[1740623590390,0.04959549,137.59,137.57,0.05537187]
[1740623590594,7.2785,137.58,137.57,0.05537187]
[1740623591994,7.2803,137.55,137.49,3.39089158]
[1740623592191,12.02,137.57,137.47,3.39089158]
[1740623592498,12.02,137.57,137.41,4.00869158]
[1740623592694,12.02,137.57,137.47,7.2841]
[1740623592890,13.8725,137.57,137.47,7.2841]
[1740623593092,13.8725,137.57,137.44,3.39089158]
[1740623593292,0.04922684,137.53,137.51,0.04813194]
[1740623593496,0.04922684,137.53,137.42,30.91829269]
[1740623593698,1.2856882,137.56,137.42,30.91829269]
[1740623594298,7.2817,137.52,137.44,7.2858]
[1740623594698,0.05481533,137.49,137.47,0.04958147]
[1740623594895,0.05481533,137.49,137.42,36.29809269]
[1740623595098,0.05481533,137.49,137.42,29.01119269]
[1740623595594,0.05481533,137.49,137.42,36.29769269]
[1740623595896,0.05481533,137.49,137.37,1.9006]
[1740623596091,0.05481533,137.49,137.44,0.05599816]
[1740623596293,15.9953,137.5,137.44,0.05599816]
[1740623596491,0.04987697,137.48,137.44,0.05599816]
[1740623599189,7.33377697,137.48,137.44,0.05599816]
[1740623599392,0.04987697,137.48,137.44,0.05599816]
[1740623600801,0.04987697,137.48,137.37,1.9006]
[1740623601100,1.28450001,137.48,137.36,1.96]
[1740623601297,1.28450001,137.48,137.39,7.2885]
[1740623601496,1.28450001,137.48,137.36,1.96]
[1740623601895,0.04887902,137.43,137.41,0.04790423]
[1740623602092,1.28450001,137.48,137.41,0.04790423]
[1740623602300,0.05128601,137.43,137.41,0.04790423]
[1740623602599,7.284,137.48,137.41,0.04790423]
[1740623602797,0.05549167,137.43,137.41,7.33500423]
[1740623602996,1.9021,137.49,137.41,0.04790423]
[1740623603599,12.02,137.53,137.42,3.39164236]
[1740623603903,12.02,137.53,137.49,7.2831]
[1740623604300,12.02,137.53,137.5,0.05027132]
[1740623604602,0.05476344,137.52,137.48,7.2837]
[1740623604806,12.02,137.53,137.5,0.05014403]
[1740623605002,0.05251454,137.51,137.5,0.05014403]
[1740623605202,12.02,137.57,137.44,3.39164236]
[1740623605404,0.05310082,137.52,137.49,0.04645711]
[1740623605702,7.2801,137.55,137.5,7.2827]
[1740623605895,0.05106658,137.52,137.5,7.2827]
[1740623606095,0.05106658,137.52,137.49,0.05555167]
[1740623606296,126.33606283,137.59,137.49,0.05555167]
[1740623606504,124.33016283,137.59,137.5,3.39464271]
[1740623606702,124.33016283,137.59,137.53,7.2807]
[1740623606903,124.33016283,137.59,137.51,1.996]
[1740623607303,124.33016283,137.59,137.55,7.2799]
[1740623607499,0.04831696,137.56,137.55,7.2799]
[1740623608208,0.04831696,137.56,137.54,0.05394829]
[1740623609507,0.04831696,137.56,137.55,7.2801]
[1740623610012,0.04831696,137.56,137.54,7.33444829]
[1740623611300,0.04831696,137.56,137.54,0.05394829]
[1740623611904,0.04831696,137.56,137.54,7.33414829]
[1740623612101,1.696e-05,137.56,137.54,0.05394829]
[1740623612410,1.696e-05,137.56,137.55,7.2801]
[1740623614710,1.696e-05,137.56,137.55,10.6758113]
[1740623614909,1.696e-05,137.56,137.55,15.2087113]
[1740623615108,1.696e-05,137.56,137.55,15.20741643]
[1740623616010,1.696e-05,137.56,137.55,14.43891643]
[1740623617115,1.696e-05,137.56,137.55,14.43769253]
[1740623619315,1.696e-05,137.56,137.55,9.1384]
[1740623619906,1.696e-05,137.56,137.55,12.52780759]
[1740623621108,1.696e-05,137.56,137.55,7.2801]
[1740623625111,1.696e-05,137.56,137.55,10.66758202]
[1740623625311,1.696e-05,137.56,137.55,10.66762851]
[1740623625722,1.696e-05,137.56,137.55,10.66805199]
[1740623627116,1.696e-05,137.56,137.55,22.62805199]
[1740623627516,1.696e-05,137.56,137.55,22.62721303]
[1740623633727,1.696e-05,137.56,137.55,22.61313848]
[1740623634131,1.696e-05,137.56,137.55,7.2801]
[1740623640130,1.696e-05,137.56,137.55,10.65464056]
[1740623640834,1.696e-05,137.56,137.55,12.10865728]
[1740623641536,75.28224293,137.75,137.56,14.5588]
[1740623641732,3.33113435,137.74,137.57,15.29454056]
[1740623641937,2.0465,137.74,137.58,3.37454056]
[1740623642133,2.0465,137.74,137.59,3.37454056]
[1740623642338,2.0465,137.74,137.6,3.37454056]
[1740623642534,2.0465,137.74,137.61,3.37454056]
[1740623642728,2.0465,137.74,137.71,7.2712]
[1740623643133,2.09972342,137.74,137.71,7.31777847]
[1740623643530,2.09972342,137.74,137.71,0.04657847]
[1740623643730,2.09972342,137.74,137.62,3.37454056]
[1740623644035,1.28471608,137.73,137.6,3.37454056]
[1740623644236,1.28471608,137.73,137.58,1.45369966]
[1740623644542,30.74151186,137.73,137.56,3.37454056]
[1740623644740,1.28471608,137.72,137.55,8.6967388]
[1740623645039,0.04953534,137.66,137.63,0.05016978]
[1740623645240,7.2744,137.66,137.55,5.32219824]
[1740623645442,192.0,137.7,137.56,3.37913249]
[1740623645640,1.28519521,137.69,137.57,3.37882038]
[1740623645840,192.0,137.7,137.58,3.37795147]
[1740623646041,192.0,137.7,137.59,3.37789534]
[1740623646240,0.05448818,137.66,137.64,7.2749]
[1740623647036,0.05448818,137.66,137.58,3.38136098]
[1740623647236,1.8607,137.69,137.53,2.0277]
[1740623647437,1.28517646,137.68,137.57,7.2786]
[1740623647747,1.28517646,137.68,137.5,45.8384806]
[1740623648039,7.2775,137.6,137.55,7.28]
[1740623648241,7.32620561,137.6,137.58,0.05131369]
[1740623648543,7.32620561,137.6,137.55,7.28]
[1740623648735,2.0222,137.59,137.55,7.28]
[1740623648937,3.9821,137.59,137.51,29.01119269]
[1740623649335,195.9821,137.59,137.51,16.69259269]
[1740623649538,0.04605131,137.56,137.51,6.46089269]
[1740623649735,11.98605131,137.56,137.51,6.46089269]
[1740623650340,1.28643143,137.55,137.51,6.46089269]
[1740623650749,7.2817,137.52,137.51,6.46089269]
[1740623651140,0.05540648,137.53,137.51,6.46089269]
[1740623651335,0.05540648,137.53,137.38,276.50287995]
[1740623651538,1.28646904,137.55,137.38,276.50287995]
[1740623651737,0.05016358,137.49,137.39,1.9483]
[1740623651938,0.05016358,137.49,137.46,7.2848]
[1740623652543,0.05016358,137.49,137.47,7.2843]
[1740623652743,0.05016358,137.49,137.39,1.9483]
[1740623653149,7.2821,137.52,137.45,7.285]
[1740623653347,4.666e-05,137.45,137.39,1.9483]
[1740623653552,7.2812,137.53,137.39,1.9483]
[1740623653848,7.2812,137.53,137.47,7.2841]
[1740623654349,192.0,137.55,137.39,1.9483]
[1740623654543,0.04807995,137.51,137.49,0.05006119]
[1740623654741,11.92,137.57,137.39,3.40401002]
[1740623654947,0.05013119,137.51,137.49,0.04936581]
[1740623655138,11.92,137.57,137.49,0.04936581]
[1740623655339,0.0495649,137.51,137.49,0.04936581]
[1740623655548,7.2812,137.53,137.49,0.04936581]
[1740623655753,0.04758274,137.51,137.49,0.04936581]
[1740623656151,0.05294869,137.51,137.49,0.04936581]
[1740623656553,7.2827,137.5,137.49,0.04936581]
[1740623658558,19.2027,137.5,137.49,0.04936581]
[1740623658748,19.2027,137.5,137.49,6.581e-05]
[1740623659153,20.48971805,137.5,137.49,6.581e-05]
[1740623660650,19.2027,137.5,137.49,6.581e-05]
[1740623660858,20.48988355,137.5,137.49,6.581e-05]
[1740623661552,8.56988355,137.5,137.49,6.581e-05]
[1740623661753,20.48988355,137.5,137.49,6.581e-05]
[1740623662254,19.2027,137.5,137.49,6.581e-05]
[1740623662458,20.48962348,137.5,137.49,6.581e-05]
[1740623664063,19.2027,137.5,137.49,6.581e-05]
[1740623665056,20.4895745,137.5,137.49,6.581e-05]
[1740623667754,35.0768745,137.5,137.36,7.2898]
[1740623667954,35.0768745,137.5,137.31,1.9043]
[1740623667955,1.2868745,137.49,137.31,1.9043]
[1740623668860,33.79,137.5,137.3,3.9926]
[1740623669158,0.05108856,137.41,137.2,800.32154081]
[1740623669360,0.05108856,137.41,137.04,569.31696221]
[1740623669361,43.74,137.39,137.16,137.16603186]
[1740623669555,90.28769224,137.38,137.04,569.31696221]
[1740623669863,0.05348648,137.32,137.06,36.40010074]
[1740623670057,7.3019,137.14,137.04,569.31696221]
[1740623670258,12.58,137.13,137.07,36.40010074]
[1740623670463,12.58,137.13,137.04,569.31696221]
[1740623670663,12.58,137.13,137.08,36.40010074]
[1740623670864,0.05510189,137.1,137.09,36.40010074]
[1740623671465,0.05510189,137.1,137.04,569.31696221]
[1740623671767,0.05510189,137.1,137.09,36.40010074]
[1740623671963,198.02,137.22,137.09,36.40010074]
[1740623672264,12.58,137.21,137.12,36.40010074]
[1740623672669,12.58,137.21,137.06,1.9537]
[1740623672966,12.56,137.27,137.18,36.40010074]
[1740623673465,0.0532049,137.24,137.06,200.1337]
[1740623673663,0.0532049,137.24,137.21,0.04629176]
[1740623673964,34.43,137.27,137.21,0.05197521]
[1740623674165,0.05594547,137.24,137.21,0.05197521]
[1740623674563,326.10628874,137.23,137.21,0.05197521]
[1740623674759,326.10628874,137.23,137.22,36.40010074]
[1740623675268,326.10628874,137.23,137.21,0.05197521]
[1740623675471,326.10628874,137.23,137.22,36.40010074]
[1740623675962,326.10628874,137.23,137.21,0.05197521]
[1740623676470,326.10628874,137.23,137.08,12.56]
[1740623676471,326.10628874,137.22,137.17,7.3002]
[1740623676768,326.10628874,137.22,137.21,36.40010074]
[1740623676966,326.10628874,137.22,137.2,36.40010074]
[1740623677267,326.10628874,137.22,137.18,36.40010074]
[1740623677459,326.10628874,137.22,137.07,12.56]
[1740623677658,0.05481263,137.21,137.07,12.56]
[1740623677858,326.10628874,137.22,137.07,12.56]
[1740623678061,326.10628874,137.22,137.09,7.3043]
[1740623678062,5.747e-05,137.15,137.09,7.3043]
[1740623678264,5.747e-05,137.15,137.07,12.56]
[1740623678463,5.747e-05,137.15,137.06,198.18]
[1740623678668,326.10628874,137.22,137.06,198.18]
[1740623678972,142.67150132,137.21,137.06,198.18]
[1740623679168,142.67150132,137.21,137.13,7.302]
[1740623679370,0.04972491,137.15,137.13,7.302]
[1740623679666,144.55090132,137.21,137.13,7.302]
[1740623679872,0.04927273,137.15,137.14,7.3013]
[1740623680173,142.67150132,137.2,137.02,207.54]
[1740623680369,0.05477693,137.16,137.13,0.05000611]
[1740623680564,142.67150132,137.2,137.13,0.05000611]
[1740623680771,0.05525134,137.16,137.03,196.4595344]
[1740623680963,0.05525134,137.16,137.15,0.05416753]
[1740623681167,142.67150132,137.2,137.03,196.4595344]
[1740623681370,689.03996303,137.05,137.04,8.7666279]
[1740623681667,675.80704532,137.05,137.04,203.7666279]
[1740623681870,602.84704532,137.05,137.04,203.7666279]
[1740623682175,548.73964532,137.05,137.04,203.7666279]
[1740623682373,512.05514532,137.05,137.04,203.7666279]
[1740623682575,486.76374532,137.05,137.04,203.7666279]
[1740623682976,5.98126576,137.05,137.04,203.7666279]
[1740623683172,454.18037421,137.06,137.05,7.3066]
[1740623683373,406.98397421,137.06,137.05,7.3066]
[1740623684078,384.05547675,137.06,137.05,7.3066]
[1740623684477,384.05547675,137.06,137.04,50.86988875]
[1740623684779,384.05547675,137.06,137.03,0.04588097]
[1740623685077,384.05547675,137.06,137.05,7.3066]
[1740623685078,359.63157675,137.06,137.05,7.3066]
[1740623685274,322.35247675,137.06,137.05,7.3066]
[1740623685480,291.29727675,137.06,137.01,210.82]
[1740623686071,347.62765685,137.06,137.01,210.82]
[1740623686272,309.61715685,137.06,137.05,7.3066]
[1740623686873,309.61715685,137.06,137.01,198.3]
[1740623687478,309.61715685,137.06,137.05,7.3066]
[1740623687783,309.61715685,137.06,137.01,198.3]
[1740623687981,309.61715685,137.06,137.03,7.3077]
[1740623688186,309.61715685,137.06,137.02,0.05338812]
[1740623689490,92.50605685,137.06,137.02,0.05338812]
[1740623689687,35.42719735,137.06,137.02,0.05338812]
[1740623689878,35.42719735,137.06,137.01,147.38539965]
[1740623690081,15.03439735,137.06,137.05,7.3066]
[1740623690287,289.20541844,137.1,137.05,12.5]
[1740623690584,289.20541844,137.1,137.09,7.3045]
[1740623691282,179.87965917,137.12,137.11,7.3034]
[1740623691487,168.55795917,137.12,137.11,7.3034]
[1740623691987,157.26465917,137.12,137.11,7.3034]
[1740623692286,115.41835917,137.12,137.11,7.3034]
[1740623692585,72.68655917,137.12,137.11,7.3034]
[1740623693989,0.04732287,137.13,137.12,7.3029]
[1740623694184,0.04732287,137.13,137.12,19.7829]
[1740623694994,2.287e-05,137.13,137.12,19.7829]
[1740623695381,2.287e-05,137.13,137.12,67.70247045]
[1740623695585,2.287e-05,137.13,137.12,125.205955]
[1740623696286,2.287e-05,137.13,137.12,323.625955]
[1740623696886,1.9487,137.3,137.12,316.323055]
[1740623697087,72.96,137.25,137.13,1.45847006]
[1740623697592,1.9487,137.3,137.13,1.45847006]
[1740623697793,72.96,137.25,137.13,1.45847006]
[1740623698190,1.9487,137.3,137.18,0.04587931]
[1740623698191,0.05508513,137.2,137.18,0.04587931]
[1740623698387,0.05508513,137.2,137.19,7.2988]
[1740623698598,7.2948,137.28,137.19,19.7588]
[1740623698791,0.05502431,137.2,137.19,19.7588]
[1740623698998,0.05137296,137.25,137.19,19.7588]
[1740623699192,7.295,137.27,137.19,19.7588]
[1740623699400,0.05501479,137.23,137.19,19.7588]
[1740623699593,0.05501479,137.23,137.22,0.05580395]
[1740623700497,1.9487,137.3,137.22,0.05580395]
[1740623701097,7.2952,137.27,137.22,0.05580395]
[1740623701289,1.9487,137.3,137.22,0.05580395]
[1740623701694,0.04753102,137.27,137.22,0.05580395]
[1740623701996,1.9487,137.3,137.22,182.15017168]
[1740623702395,1.9487,137.3,137.23,105.423055]
[1740623703195,0.05066641,137.28,137.25,0.04832893]
[1740623703900,0.05066641,137.28,137.23,105.423055]
[1740623704101,0.05066641,137.28,137.24,182.09436773]
[1740623704296,7.294,137.29,137.24,182.09436773]
[1740623704493,3.9681,137.33,137.24,182.09436773]
[1740623704998,0.05411083,137.3,137.27,0.04587873]
[1740623706401,7.34751083,137.3,137.27,0.04587873]
[1740623706700,204.46,137.39,137.28,105.423055]
[1740623706903,192.0,137.38,137.28,105.423055]
[1740623707103,7.293,137.31,137.28,105.423055]
[1740623707800,7.34753875,137.31,137.28,201.31283305]
[1740623708001,192.0,137.38,137.28,201.31283305]
[1740623708202,192.0,137.37,137.28,201.26219592]
[1740623708703,7.2922,137.33,137.28,201.26219592]
[1740623709203,14.36859039,137.32,137.29,105.47026342]
[1740623709400,0.39939367,137.32,137.29,102.38446342]
[1740623709597,0.40266749,137.32,137.29,102.38623657]
[1740623710103,0.05016421,137.32,137.29,102.38623657]
[1740623710398,0.05016421,137.32,137.3,1849.63055345]
[1740623711603,7.2928,137.31,137.3,1843.45975345]
[1740623711802,7.2928,137.31,137.3,1822.72455345]
[1740623712006,7.2928,137.31,137.3,1041.69115401]
[1740623712404,7.20638318,137.31,137.3,1041.69115401]
[1740623712705,7.34246421,137.32,137.3,1041.69115401]
[1740623713107,0.05016421,137.32,137.3,1041.69115401]
[1740623713499,0.05016421,137.32,137.3,343.45772241]
[1740623715701,7.34286421,137.32,137.3,343.45772241]
[1740623716207,7.2928,137.31,137.3,343.45772241]
[1740623717711,7.2928,137.31,137.3,331.66152241]
[1740623717911,0.05016421,137.32,137.29,0.04898157]
[1740623718106,7.2933,137.3,137.29,0.04898157]
[1740623718308,19.6733,137.3,137.29,0.04898157]
[1740623718502,7.2948,137.28,137.14,3.9531]
[1740623718708,12.38,137.3,137.17,0.04898157]
[1740623719207,7.2953,137.27,137.16,7.3007]
[1740623719409,7.2953,137.27,137.17,0.04898157]
[1740623719810,0.05402529,137.23,137.21,0.0465708]
[1740623720007,12.38,137.3,137.18,0.04898157]
[1740623720209,0.051614,137.23,137.21,0.05471921]
[1740623720510,12.38,137.3,137.14,3.9531]
[1740623720809,0.05218113,137.23,137.21,0.05554748]
[1740623721009,12.36,137.23,137.15,7.34988157]
[1740623721206,12.41041919,137.23,137.21,0.04971511]
[1740623721408,12.36,137.23,137.17,0.04898157]
[1740623721604,12.40758012,137.23,137.21,0.05178071]
[1740623722707,0.04758012,137.23,137.21,0.05178071]
[1740623722917,0.04758012,137.23,137.22,0.04898157]
[1740623724117,0.04758012,137.23,137.22,7.34658157]
[1740623724609,0.04758012,137.23,137.09,3.857]
[1740623724610,21.87,137.21,137.11,379.03310007]
[1740623724815,21.87,137.19,137.11,139.91175366]
[1740623725008,1.28768514,137.18,136.92,80.2763039]
[1740623725516,1.45804476,137.17,136.92,80.2763039]
[1740623725716,7.3029,137.12,136.92,80.2763039]
[1740623725911,0.04943914,137.06,137.03,0.0555016]
[1740623726116,12.94,137.11,136.92,80.2763039]
[1740623726319,0.04711618,137.06,137.03,0.04648964]
[1740623726508,20.2435,137.11,136.92,80.2763039]
[1740623726706,0.05576545,137.06,137.03,0.05389634]
[1740623727019,0.04819738,137.06,137.03,0.05433157]
[1740623728822,7.35429738,137.06,137.03,0.05433157]
[1740623729420,21.91819738,137.06,137.03,0.05433157]
[1740623729614,21.87,137.05,137.03,0.05433157]
[1740623729814,12.9,137.04,137.03,0.05433157]
[1740623730019,20.2072,137.04,137.03,0.05433157]
[1740623730521,12.9,137.04,136.86,7.3163]
[1740623730721,7.308,137.03,136.87,7.3162]
[1740623731527,7.3085,137.02,136.87,7.3162]
[1740623731730,0.05249782,136.97,136.94,0.05063785]
[1740623731927,124.82786227,137.04,136.86,3.8885]
[1740623732127,0.04846141,136.97,136.94,0.05589315]
[1740623732327,197.92614134,136.95,136.86,3.8885]
[1740623732521,197.92614134,136.95,136.94,0.04829743]
[1740623732831,191.74114134,136.95,136.86,3.8885]
[1740623733926,0.053471,136.92,136.89,0.05561698]
[1740623734325,0.053471,136.92,136.91,7.3139]
[1740623734524,230.50557231,136.95,136.91,7.3139]
[1740623734725,230.50557231,136.95,136.92,7.3132]
[1740623734923,168.03039213,136.94,136.86,3.8885]
[1740623735627,9.197e-05,136.91,136.9,7.3146]
[1740623736027,9.197e-05,136.91,136.89,0.05133342]
[1740623736626,9.197e-05,136.91,136.9,7.3146]
[1740623738627,90.0713112,136.91,136.9,7.3146]
[1740623738831,90.0713112,136.91,136.89,0.05133342]
[1740623739031,90.0713112,136.91,136.79,12.82]
[1740623739227,38.40210472,136.91,136.79,12.82]
[1740623739630,38.40210472,136.91,136.81,7.3191]
[1740623739832,38.40210472,136.91,136.79,12.82]
[1740623740227,0.05360894,136.87,136.85,0.05363262]
[1740623740437,78.87061953,136.86,136.85,0.05363262]
[1740623740734,78.87061953,136.86,136.85,7.37093262]
[1740623740933,75.77641953,136.86,136.85,7.37093262]
[1740623742237,38.37918233,136.86,136.85,7.37093262]
[1740623742537,38.37918233,136.86,136.79,12.82]
[1740623742733,38.37918233,136.86,136.8,1.4619883]
[1740623743038,9.80781066,136.89,136.84,7.3173]
[1740623743532,0.04676512,136.88,136.85,0.04900587]
[1740623745138,0.04676512,136.88,136.85,7.36620587]
[1740623746139,0.04676512,136.88,136.86,2.0615]
[1740623746537,0.04676512,136.88,136.81,3.8559]
[1740623747640,0.04676512,136.88,136.84,7.3175]
[1740623748237,0.04676512,136.88,136.85,7.3172]
[1740623749341,0.04676512,136.88,136.84,7.3177]
[1740623751845,0.04676512,136.88,136.83,0.02442571]
[1740623752143,0.04676512,136.88,136.85,7.3172]
[1740623752947,0.04676512,136.88,136.86,7.3168]
[1740623753443,0.04676512,136.88,136.87,7.3162]
[1740623753845,1.9682,136.96,136.86,0.02442571]
[1740623754042,1.9682,136.96,136.8,1.4619883]
[1740623754346,1.9682,136.96,136.81,2.002]
[1740623754545,7.3125,136.94,136.82,7.3187]
[1740623754946,0.04710638,136.89,136.87,0.05048487]
[1740623755247,9.2797,136.96,136.83,7.318]
[1740623755547,0.05510268,136.89,136.87,0.04770444]
[1740623755743,9.2797,136.96,136.83,7.318]
[1740623755947,0.05001351,136.89,136.87,0.04893878]
[1740623756149,1.9682,136.96,136.81,2.002]
[1740623756345,0.04739939,136.89,136.87,0.04681282]
[1740623756553,12.72,136.88,136.7,3.7825]
[1740623756750,1.9822,136.87,136.71,1.9891]
[1740623756950,3.9907,136.87,136.71,1.9891]
[1740623757250,7.317,136.86,136.73,7.3236]
[1740623757450,3.9907,136.87,136.71,1.9891]
[1740623757644,0.05557148,136.81,136.78,0.02437801]
[1740623757845,3.9907,136.87,136.71,1.9891]
[1740623758047,0.05411632,136.81,136.78,0.02437801]
[1740623758342,11.3073,136.87,136.78,0.02437801]
[1740623758549,3.9907,136.87,136.74,7.3231]
[1740623758751,0.05487437,136.84,136.81,0.02437801]
[1740623761654,2.0552,136.91,136.81,0.02437801]
[1740623761957,2.0552,136.91,136.79,4.054]
[1740623762348,2.0552,136.91,136.82,7.3184]
[1740623762753,0.053608,136.88,136.85,0.05355905]
[1740623764351,7.3167,136.87,136.85,0.05355905]
[1740623764651,0.053608,136.88,136.85,0.05355905]
[1740623766049,7.3168,136.86,136.85,0.05355905]
[1740623766955,0.053608,136.88,136.78,1.9278]
[1740623767157,4.0346,136.9,136.75,2.0143]
[1740623767559,7.3206,136.79,136.72,3.7827]
[1740623767758,12.66,136.84,136.72,3.7827]
[1740623767952,3.8967,136.83,136.72,3.7827]
[1740623768259,0.0541622,136.79,136.77,0.02569333]
[1740623768853,7.321,136.78,136.77,0.02569333]
[1740623769953,0.0541622,136.79,136.62,50.86988875]
[1740623770160,3.8967,136.83,136.63,5.7988]
[1740623770755,7.3233,136.74,136.69,7.3255]
[1740623771258,0.04946371,136.73,136.63,5.7988]
[1740623771452,21.87,136.82,136.63,5.7988]
[1740623771653,0.05185517,136.69,136.63,5.7988]
[1740623771855,3.8967,136.83,136.63,5.7988]
[1740623772255,5.9279,136.83,136.63,5.7988]
[1740623772454,5.9279,136.83,136.64,1.46370023]
[1740623773056,0.04695669,136.75,136.72,0.05051263]
[1740623773363,7.3198,136.81,136.68,12.62]
[1740623773555,5.9279,136.83,136.68,14.08327187]
[1740623773758,11.2152,136.83,136.68,14.08327187]
[1740623773957,51.85124266,136.87,136.69,1.46316482]
[1740623773958,53.85054266,136.87,136.69,1.46316482]
[1740623774461,0.04626439,136.79,136.77,7.37010013]
[1740623774662,7.319,136.82,136.77,7.3214]
[1740623774854,0.05398263,136.79,136.77,7.37384618]
[1740623775060,0.05398263,136.79,136.77,0.05244618]
[1740623776859,7.37458263,136.79,136.77,0.05244618]
[1740623777059,0.05398263,136.79,136.77,0.05244618]
[1740623777859,7.37458263,136.79,136.77,0.05244618]
[1740623778256,0.05398263,136.79,136.77,0.05244618]
[1740623779465,7.321,136.78,136.77,0.05244618]
[1740623779965,0.05398263,136.79,136.77,0.05244618]
[1740623781263,0.05398263,136.79,136.78,7.321]
[1740623783766,0.05398263,136.79,136.77,0.05244618]
[1740623783965,7.37458263,136.79,136.77,0.05244618]
[1740623784169,0.05398263,136.79,136.77,0.05244618]
[1740623785962,7.37458263,136.79,136.77,0.05244618]
[1740623786167,0.05398263,136.79,136.77,0.05244618]
[1740623787267,0.05398263,136.79,136.78,7.321]
[1740623787469,1.9993,136.87,136.77,0.05244618]
[1740623787666,7.3169,136.86,136.81,7.3191]
[1740623787868,7.3169,136.86,136.78,1.9742]
[1740623788668,0.05285286,136.83,136.81,0.05094813]
[1740623788966,0.05285286,136.83,136.82,7.3189]
[1740623790073,0.05285286,136.83,136.81,7.37268592]
[1740623790272,0.05285286,136.83,136.81,7.3193]
[1740623790575,0.05285286,136.83,136.81,7.37408023]
[1740623790968,0.05285286,136.83,136.81,0.05478023]
[1740623791965,0.05285286,136.83,136.81,7.37408023]
[1740623792164,0.05285286,136.83,136.81,0.05478023]
[1740623792568,0.05285286,136.83,136.71,203.0223]
[1740623792766,12.5,136.88,136.71,203.0223]
[1740623792966,34.37,136.88,136.71,200.9743]
[1740623793170,34.37,136.88,136.69,1.46316482]
[1740623793376,34.37,136.88,136.67,3.9531]
[1740623793572,34.37,136.88,136.67,33.83056487]
[1740623793876,0.05402444,136.79,136.76,1.096e-05]
[1740623794076,7.3234,136.74,136.68,7.326]
[1740623794971,0.05597537,136.72,136.68,7.326]
[1740623795369,0.05597537,136.72,136.67,29.87746487]
[1740623796076,7.38037537,136.72,136.67,37.20396487]
[1740623796472,7.38037537,136.72,136.67,7.3265]
[1740623796771,0.05597537,136.72,136.63,200.7717]
[1740623796970,3.7781,136.78,136.63,200.7717]
[1740623797174,0.04856197,136.69,136.68,7.326]
[1740623797471,0.05168043,136.7,136.68,7.326]
[1740623797665,7.3221,136.77,136.7,7.3249]
[1740623797864,5.6504,136.78,136.7,7.3249]
[1740623798372,7.3233,136.74,136.68,7.3259]
[1740623798773,0.04737387,136.72,136.7,0.05169139]
[1740623798973,5.6504,136.78,136.7,0.05169139]
[1740623799176,0.05301399,136.72,136.7,0.05169139]
[1740623799373,7.3238,136.73,136.7,0.05169139]
[1740623799569,7.3248,136.71,136.7,0.05169139]
[1740623802580,7.3255,136.7,136.65,7.3279]
[1740623803579,7.326,136.69,136.65,7.3279]